bitfinex/quotes_BTCUSD_20250303
["timestamp","ask_amount","ask_price","bid_price","bid_amount"]
[1741036092580,0.0001696,86613.0,86609.0,1.516322]
[1741036092814,0.0001696,86613.0,86609.0,1.21671815]
[1741036093813,0.0001696,86613.0,86609.0,0.30721815]
[1741036094017,0.0001696,86613.0,86609.0,0.23131815]
[1741036094828,0.0001696,86613.0,86609.0,0.23631815]
[1741036095232,0.0001696,86613.0,86609.0,0.23131815]
[1741036095634,0.0001696,86613.0,86609.0,0.23831815]
[1741036095811,0.0001696,86613.0,86612.0,0.230914]
[1741036096613,0.0001696,86613.0,86612.0,0.552414]
[1741036097028,6e-07,86613.0,86612.0,1.21560152]
[1741036097233,6e-07,86613.0,86612.0,1.56550152]
[1741036098656,6e-07,86613.0,86612.0,1.03220152]
[1741036098864,6e-07,86613.0,86612.0,0.692314]
[1741036099465,6e-07,86613.0,86612.0,0.3285]
[1741036100085,0.2309126,86613.0,86612.0,0.007]
[1741036101147,0.23092,86610.0,86609.0,0.00039615]
[1741036101300,0.22892,86610.0,86609.0,0.00039615]
[1741036101683,0.346412,86602.0,86573.0,0.3215]
[1741036101892,0.231008,86577.0,86571.0,0.10329756]
[1741036102096,0.00039608,86602.0,86571.0,0.10329756]
[1741036102304,0.3,86600.0,86566.0,0.231036]
[1741036102501,0.00039608,86602.0,86574.0,0.231013]
[1741036102741,0.231008,86577.0,86565.0,0.231039]
[1741036102890,0.231008,86577.0,86568.0,0.231031]
[1741036103091,0.27091885,86577.0,86568.0,0.231031]
[1741036103400,0.27091885,86577.0,86566.0,0.231036]
[1741036103586,0.27091885,86577.0,86561.0,0.3215]
[1741036103988,0.27091885,86577.0,86565.0,0.231039]
[1741036104191,0.03991085,86577.0,86561.0,0.3215]
[1741036104396,0.231008,86577.0,86561.0,0.552549]
[1741036104595,0.232008,86577.0,86561.0,0.3215]
[1741036105090,0.231008,86577.0,86561.0,0.3215]
[1741036105488,0.232008,86577.0,86561.0,0.3215]
[1741036105941,0.231008,86577.0,86561.0,0.3215]
[1741036106307,0.232008,86577.0,86545.0,0.3215]
[1741036106725,0.232008,86577.0,86546.0,0.00161735]
[1741036106931,0.532008,86577.0,86545.0,0.3215]
[1741036107717,0.23109,86546.0,86545.0,0.3215]
[1741036107850,0.3,86575.0,86533.0,0.0762]
[1741036108040,0.4234,86576.0,86537.0,0.231113]
[1741036108041,0.231092,86546.0,86537.0,0.231113]
[1741036108240,0.231069,86554.0,86533.0,0.0762]
[1741036108462,0.231088,86547.0,86537.0,0.231113]
[1741036108743,0.231096,86544.0,86535.0,0.2314584]
[1741036108965,0.231111,86539.0,86535.0,0.0004582]
[1741036109144,0.231117,86536.0,86535.0,0.0004582]
[1741036110001,0.27073606,86536.0,86535.0,0.0004582]
[1741036111234,0.2793776,86536.0,86535.0,0.0064582]
[1741036111719,0.9699696,86536.0,86535.0,0.0004582]
[1741036111974,0.6804776,86536.0,86535.0,0.0004582]
[1741036112115,0.6834776,86536.0,86535.0,0.0004582]
[1741036112315,0.7912016,86536.0,86535.0,0.0004582]
[1741036112577,0.7882016,86536.0,86535.0,0.0004582]
[1741036112759,0.7882016,86536.0,86535.0,2e-07]
[1741036112939,0.5823776,86536.0,86535.0,2e-07]
[1741036114569,0.5793776,86536.0,86535.0,2e-07]
[1741036114740,0.231144,86526.0,86522.0,0.0003394]
[1741036114944,0.231144,86526.0,86525.0,0.00510887]
[1741036115145,0.231128,86532.0,86525.0,0.00510887]
[1741036115325,0.231144,86526.0,86525.0,0.00510887]
[1741036117329,0.0484303,86536.0,86525.0,0.00510887]
[1741036117535,0.231135,86530.0,86525.0,0.00510887]
[1741036117664,0.0484303,86536.0,86525.0,0.00510887]
[1741036117870,0.231131,86531.0,86525.0,0.00510887]
[1741036118071,0.231144,86526.0,86525.0,0.00510887]
[1741036118281,0.231136,86529.0,86525.0,0.00510887]
[1741036118479,0.0484303,86536.0,86525.0,0.00510887]
[1741036118480,0.231144,86526.0,86525.0,0.00510887]
[1741036123314,0.531144,86526.0,86525.0,0.00510887]
[1741036126134,0.0484303,86536.0,86525.0,0.00510887]
[1741036126335,0.0484303,86536.0,86529.0,0.231135]
[1741036126661,0.231133,86531.0,86525.0,0.00510887]
[1741036126990,0.0484303,86536.0,86527.0,0.23114]
[1741036127203,0.0484303,86536.0,86532.0,0.231125]
[1741036127410,0.0514303,86536.0,86531.0,0.231129]
[1741036127716,0.0031697,86536.0,86535.0,0.23112]
[1741036127937,0.0001697,86536.0,86535.0,0.23112]
[1741036128216,0.0031697,86536.0,86535.0,0.23112]
[1741036128846,0.0001697,86536.0,86535.0,0.23112]
[1741036129046,0.0001697,86536.0,86528.0,0.231137]
[1741036129222,0.0001697,86536.0,86525.0,0.00544827]
[1741036129423,0.231144,86526.0,86525.0,0.00544827]
[1741036130023,0.231144,86526.0,86522.0,0.0003394]
[1741036130024,0.531144,86526.0,86522.0,0.0003394]
[1741036130224,0.231152,86523.0,86522.0,0.00045829]
[1741036131905,0.231152,86523.0,86522.0,0.00145829]
[1741036132716,0.23976603,86523.0,86522.0,0.00145829]
[1741036132872,0.53976603,86523.0,86522.0,0.00145829]
[1741036133498,0.31221225,86523.0,86522.0,0.00145829]
[1741036133729,0.53976603,86523.0,86522.0,0.00045829]
[1741036133957,0.53976603,86523.0,86522.0,0.00145829]
[1741036134591,0.53976603,86523.0,86522.0,0.00045829]
[1741036134834,0.53976603,86523.0,86522.0,0.00145829]
[1741036135508,0.0001697,86536.0,86533.0,0.231125]
[1741036135724,0.0001697,86536.0,86523.0,0.0828]
[1741036135933,0.231129,86532.0,86523.0,0.0828]
[1741036136088,0.0001697,86536.0,86523.0,0.0828]
[1741036136287,0.2312887,86536.0,86527.0,0.23114]
[1741036136503,0.0001697,86536.0,86523.0,0.0828]
[1741036136711,0.231128,86532.0,86523.0,0.0828]
[1741036137086,0.0031697,86536.0,86523.0,0.0828]
[1741036137294,0.0031697,86536.0,86522.0,0.00045829]
[1741036137295,0.231152,86523.0,86522.0,0.00045829]
[1741036137927,0.531152,86523.0,86522.0,0.00045829]
[1741036138046,0.26141064,86523.0,86522.0,0.00045829]
[1741036138249,0.49256264,86523.0,86522.0,0.00045829]
[1741036138449,0.49256264,86523.0,86522.0,0.001]
[1741036138665,1.24998564,86523.0,86522.0,0.001]
[1741036138885,1.05689864,86523.0,86522.0,0.001]
[1741036139086,1.03476864,86523.0,86522.0,0.001]
[1741036139513,0.71454064,86523.0,86522.0,0.001]
[1741036139731,0.231176,86514.0,86500.0,0.02054]
[1741036140471,0.231176,86514.0,86500.0,0.251752]
[1741036140669,0.231176,86514.0,86501.0,0.231209]
[1741036140880,0.231176,86514.0,86502.0,0.231208]
[1741036141028,0.231176,86514.0,86500.0,0.02054]
[1741036141624,0.231176,86514.0,86513.0,0.00799]
[1741036141985,0.53995466,86514.0,86513.0,0.00799]
[1741036142136,0.531211,86501.0,86500.0,0.0202004]
[1741036142318,0.531211,86501.0,86500.0,0.0003396]
[1741036144476,0.534211,86501.0,86500.0,0.0003396]
[1741036145201,0.531211,86501.0,86500.0,0.0003396]
[1741036145415,0.536211,86501.0,86500.0,0.0003396]
[1741036145972,0.536211,86501.0,86487.0,0.00499]
[1741036145973,0.53124,86490.0,86487.0,0.00499]
[1741036146318,0.531245,86488.0,86487.0,0.00499]
[1741036146453,0.531245,86488.0,86487.0,0.00510898]
[1741036147104,0.56501046,86488.0,86487.0,0.00510898]
[1741036147334,0.26501046,86488.0,86487.0,0.00510898]
[1741036147554,0.231193,86508.0,86487.0,0.00510898]
[1741036147705,0.0338995,86498.0,86487.0,0.00510898]
[1741036147911,0.33195804,86503.0,86487.0,0.00510898]
[1741036148113,0.231245,86488.0,86487.0,0.00510898]
[1741036148560,0.231244,86489.0,86487.0,0.00510898]
[1741036148761,0.03448373,86502.0,86487.0,0.00510898]
[1741036148967,0.231234,86493.0,86487.0,0.00510898]
[1741036149168,0.00855804,86503.0,86487.0,0.00510898]
[1741036149365,0.3234,86516.0,86487.0,0.05130898]
[1741036149610,0.0434673,86516.0,86487.0,0.05130898]
[1741036149872,0.231245,86488.0,86487.0,0.05130898]
[1741036150075,0.231245,86488.0,86487.0,0.00510898]
[1741036151646,0.3,86509.0,86487.0,0.00510898]
[1741036151811,0.00854062,86513.0,86487.0,0.00510898]
[1741036152188,0.231193,86508.0,86500.0,0.231212]
[1741036152371,0.231175,86515.0,86503.0,0.231205]
[1741036152588,0.00859723,86528.0,86501.0,0.0786]
[1741036152788,0.00859723,86528.0,86502.0,0.00161829]
[1741036153012,0.03362112,86526.0,86501.0,0.4001]
[1741036153214,0.3,86533.0,86501.0,0.4001]
[1741036153215,0.1121113,86534.0,86501.0,0.631309]
[1741036153345,0.231193,86508.0,86501.0,0.631309]
[1741036153555,0.2312,86505.0,86501.0,0.0786]
[1741036153764,0.231208,86502.0,86501.0,0.0786]
[1741036153966,0.006,86528.0,86501.0,0.0786]
[1741036154166,0.3,86526.0,86501.0,0.0786]
[1741036154374,0.53115,86524.0,86501.0,0.0786]
[1741036154573,0.231173,86516.0,86501.0,0.0786]
[1741036154779,0.3,86531.0,86502.0,0.00161841]
[1741036154989,0.231127,86533.0,86501.0,0.0796]
[1741036155195,0.14728973,86534.0,86502.0,0.32311813]
[1741036155397,0.03517843,86534.0,86533.0,0.307325]
[1741036155597,0.0001697,86536.0,86533.0,0.307325]
[1741036155934,0.0001697,86536.0,86535.0,0.23112]
[1741036156711,0.0002884,86536.0,86533.0,0.0762]
[1741036156913,0.0002884,86536.0,86535.0,0.22612]
[1741036157995,0.03444319,86536.0,86535.0,0.22612]
[1741036158179,0.0002884,86536.0,86535.0,0.22612]
[1741036158322,0.0002884,86536.0,86533.0,0.0762]
[1741036158532,0.0002884,86536.0,86535.0,0.23112]
[1741036158959,0.03386266,86536.0,86533.0,0.0762]
[1741036159337,0.03386266,86536.0,86534.0,0.231122]
[1741036159589,0.03386266,86536.0,86535.0,0.005]
[1741036160161,0.26497966,86536.0,86535.0,0.005]
[1741036160365,0.03386266,86536.0,86535.0,0.005]
[1741036160586,0.26497966,86536.0,86535.0,0.005]
[1741036160787,0.03386266,86536.0,86535.0,0.005]
[1741036161286,0.03386266,86536.0,86524.0,0.0816]
[1741036161490,0.231131,86531.0,86524.0,0.312748]
[1741036161667,0.03386266,86536.0,86515.0,0.309473]
[1741036161668,0.231154,86523.0,86515.0,0.309473]
[1741036161851,0.03386266,86536.0,86515.0,0.0783]
[1741036162056,0.3,86534.0,86515.0,0.0783]
[1741036162282,0.231158,86521.0,86515.0,0.0783]
[1741036162492,0.231152,86523.0,86515.0,0.0783]
[1741036162698,0.231154,86523.0,86515.0,0.309473]
[1741036162901,0.231134,86530.0,86522.0,0.231153]
[1741036163104,0.231134,86530.0,86515.0,0.0783]
[1741036163105,0.26498166,86536.0,86527.0,0.231139]
[1741036163303,0.03386266,86536.0,86515.0,0.0783]
[1741036163547,0.03386266,86536.0,86533.0,0.231125]
[1741036163721,0.03386266,86536.0,86533.0,0.231124]
[1741036163926,0.03386266,86536.0,86517.0,0.3215]
[1741036163927,0.03386266,86536.0,86518.0,0.231165]
[1741036164122,0.03386266,86536.0,86517.0,0.3215]
[1741036164123,0.03386266,86536.0,86519.0,0.0016178]
[1741036164333,0.03386266,86536.0,86532.0,0.231128]
[1741036164529,0.0002884,86536.0,86535.0,0.23112]
[1741036164814,0.0002884,86536.0,86535.0,0.35932]
[1741036165432,0.0002884,86536.0,86535.0,0.68082]
[1741036165836,0.0002884,86536.0,86535.0,0.6811594]
[1741036166824,0.0012884,86536.0,86535.0,0.6881594]
[1741036168170,0.0012884,86536.0,86535.0,1.5284594]
[1741036168171,4e-07,86536.0,86535.0,1.5284594]
[1741036168410,0.1033852,86571.0,86570.0,0.231026]
[1741036168642,0.231029,86569.0,86564.0,0.0779]
[1741036168825,0.1033852,86571.0,86553.0,0.0779]
[1741036168826,0.10378167,86571.0,86553.0,0.0779]
[1741036169019,0.10378167,86571.0,86565.0,0.231039]
[1741036169224,0.231034,86568.0,86556.0,0.231063]
[1741036169433,0.13783803,86571.0,86559.0,0.231055]
[1741036169639,0.13783803,86571.0,86570.0,0.001]
[1741036169873,0.36886203,86571.0,86570.0,0.001]
[1741036170051,0.231066,86556.0,86553.0,0.0779]
[1741036170261,0.231062,86557.0,86553.0,0.0779]
[1741036170415,0.231061,86557.0,86556.0,0.002]
[1741036170817,0.13783803,86571.0,86553.0,0.0779]
[1741036171010,0.231039,86566.0,86553.0,0.0779]
[1741036171218,0.13783803,86571.0,86553.0,0.0779]
[1741036171641,0.231056,86559.0,86553.0,0.0779]
[1741036171798,0.03445283,86571.0,86553.0,0.0779]
[1741036172152,0.231059,86558.0,86553.0,0.0799]
[1741036172298,0.03445283,86571.0,86553.0,0.0799]
[1741036172512,0.03445283,86571.0,86565.0,0.231039]
[1741036172713,0.03445283,86571.0,86566.0,0.231036]
[1741036172973,0.03445283,86571.0,86564.0,0.231042]
[1741036173176,0.03445283,86571.0,86566.0,0.231036]
[1741036173488,0.03445283,86571.0,86553.0,0.0779]
[1741036173687,0.03445283,86571.0,86564.0,0.23104]
[1741036173892,0.03445283,86571.0,86569.0,0.231027]
[1741036174093,0.03445283,86571.0,86567.0,0.231033]
[1741036174302,0.03445283,86571.0,86565.0,0.231038]
[1741036174752,0.03445283,86571.0,86564.0,0.23104]
[1741036174980,0.03445283,86571.0,86564.0,0.231042]
[1741036175175,0.03445283,86571.0,86565.0,0.231039]
[1741036175906,0.03445283,86571.0,86555.0,0.0499]
[1741036176048,0.03445283,86571.0,86570.0,0.231026]
[1741036176242,0.03445283,86571.0,86568.0,0.23103]
[1741036177064,0.03445283,86571.0,86555.0,0.0499]
[1741036177439,0.231066,86555.0,86542.0,0.306899]
[1741036177710,0.231057,86559.0,86542.0,0.0758]
[1741036177934,0.03445283,86571.0,86557.0,0.23106]
[1741036178217,0.03445283,86571.0,86549.0,0.231081]
[1741036178218,0.231062,86557.0,86549.0,0.231081]
[1741036178372,0.231064,86556.0,86547.0,0.231086]
[1741036178575,0.231066,86555.0,86546.0,0.231089]
[1741036178777,0.231066,86555.0,86543.0,0.231098]
[1741036178985,0.231066,86555.0,86542.0,0.0758]
[1741036179317,0.3,86565.0,86542.0,0.0758]
[1741036179476,0.3234,86581.0,86537.0,0.231112]
[1741036179477,0.231095,86545.0,86537.0,0.231112]
[1741036179672,0.23109,86547.0,86536.0,0.0003394]
[1741036179904,0.231094,86545.0,86536.0,0.0003394]
[1741036180104,0.231085,86548.0,86536.0,0.0003394]
[1741036180304,0.3,86567.0,86536.0,0.0003394]
[1741036180471,0.231092,86546.0,86538.0,0.231111]
[1741036180669,0.3,86565.0,86538.0,0.23111]
[1741036180905,0.3,86565.0,86536.0,0.0003394]
[1741036180906,0.346564,86564.0,86536.0,0.0003394]
[1741036181101,0.231096,86544.0,86536.0,0.2314544]
[1741036181347,0.231102,86542.0,86536.0,0.0003394]
[1741036181545,0.231095,86545.0,86537.0,0.231114]
[1741036181687,0.231089,86547.0,86536.0,0.0003394]
[1741036181898,0.00011887,86565.0,86541.0,0.231102]
[1741036182208,0.231075,86552.0,86536.0,0.0033394]
[1741036182408,0.231075,86552.0,86546.0,0.231089]
[1741036182628,0.14515,86551.0,86536.0,0.0003394]
[1741036182810,0.23108,86550.0,86537.0,0.003]
[1741036183012,0.231102,86542.0,86537.0,0.003]
[1741036183236,0.231015,86537.0,86536.0,0.0003394]
[1741036184870,0.23111,86539.0,86536.0,0.0003394]
[1741036185235,0.231115,86537.0,86536.0,0.0033394]
[1741036185433,0.00862735,86545.0,86536.0,0.0033394]
[1741036185687,0.03501572,86571.0,86539.0,0.231109]
[1741036185881,0.00011887,86564.0,86536.0,0.0033394]
[1741036186085,0.231108,86540.0,86536.0,0.0033394]
[1741036186286,0.231103,86542.0,86536.0,0.0003394]
[1741036186488,0.3,86560.0,86541.0,0.231102]
[1741036186706,0.3,86558.0,86536.0,0.0003394]
[1741036186868,0.231106,86541.0,86536.0,0.0003394]
[1741036187204,0.231101,86542.0,86536.0,0.0003394]
[1741036187604,0.231061,86558.0,86536.0,0.00395713]
[1741036187805,0.00011887,86564.0,86536.0,0.00395713]
[1741036187806,0.00011887,86564.0,86552.0,0.231073]
[1741036188009,0.00011887,86564.0,86537.0,0.0754]
[1741036188254,0.00011887,86564.0,86560.0,0.231051]
[1741036188489,0.00011887,86564.0,86563.0,0.231045]
[1741036190955,0.00011887,86564.0,86563.0,0.234045]
[1741036191503,0.00011887,86564.0,86563.0,0.003]
[1741036191698,0.23116087,86564.0,86563.0,0.003]
[1741036191903,0.00011887,86564.0,86551.0,0.0831]
[1741036192100,0.231056,86560.0,86551.0,0.0831]
[1741036192247,0.23106,86558.0,86551.0,0.0831]
[1741036192442,0.00011887,86564.0,86551.0,0.0831]
[1741036192671,0.231064,86556.0,86551.0,0.0831]
[1741036192882,0.00011887,86564.0,86551.0,0.0831]
[1741036193081,0.23116287,86564.0,86555.0,0.231065]
[1741036193323,0.231045,86563.0,86555.0,0.231065]
[1741036193523,0.00011887,86564.0,86551.0,0.0831]
[1741036193900,0.00011887,86564.0,86541.0,0.04951745]
[1741036193901,0.00011887,86564.0,86541.0,0.0479]
[1741036194102,0.231045,86563.0,86541.0,0.0479]
[1741036194301,0.231045,86563.0,86540.0,0.0823]
[1741036194302,0.00011887,86564.0,86540.0,0.0823]
[1741036194525,0.231092,86546.0,86540.0,0.0823]
[1741036194727,0.231094,86545.0,86540.0,0.0823]
[1741036194929,0.231092,86546.0,86540.0,0.0823]
[1741036195306,0.231085,86549.0,86540.0,0.0823]
[1741036195510,0.231093,86546.0,86540.0,0.313406]
[1741036195717,0.231085,86549.0,86540.0,0.320406]
[1741036195996,0.00011887,86564.0,86540.0,0.320406]
[1741036195997,0.231104,86541.0,86540.0,0.007]
[1741036196306,0.3,86558.0,86540.0,0.007]
[1741036196508,0.32351887,86564.0,86547.0,0.231087]
[1741036196731,0.1055,86563.0,86547.0,0.231087]
[1741036197059,0.1055,86563.0,86545.0,0.231092]
[1741036197060,0.23109,86547.0,86539.0,0.231107]
[1741036197260,0.231091,86546.0,86540.0,0.001]
[1741036197751,0.231088,86547.0,86538.0,0.231111]
[1741036197944,0.231095,86545.0,86536.0,0.2314554]
[1741036198152,0.231096,86544.0,86536.0,0.2314554]
[1741036198727,0.231084,86549.0,86540.0,0.002]
[1741036198933,0.231103,86542.0,86540.0,0.002]
[1741036199135,0.231104,86541.0,86540.0,0.002]
[1741036200046,0.231115,86537.0,86536.0,0.0003394]
[1741036200241,0.231115,86537.0,86536.0,0.0023394]
[1741036200453,0.02959116,86571.0,86536.0,0.0023394]
[1741036200658,0.84269,86570.0,86536.0,0.00395711]
[1741036200864,0.36153862,86571.0,86536.0,0.00395711]
[1741036200865,0.231073,86553.0,86537.0,0.00161743]
[1741036201067,0.231104,86541.0,86540.0,0.003]
[1741036201243,0.23150047,86541.0,86540.0,0.003]
[1741036201616,0.23150047,86541.0,86538.0,0.3215]
[1741036201617,0.231109,86539.0,86538.0,0.3215]
[1741036201786,0.231109,86539.0,86536.0,0.0003394]
[1741036201787,0.231115,86537.0,86536.0,0.0003394]
[1741036201963,0.231115,86537.0,86504.0,0.5403]
[1741036201964,0.3,86534.0,86502.0,0.0788]
[1741036202143,0.231205,86503.0,86493.0,0.0788]
[1741036202343,0.231205,86503.0,86486.0,0.0468]
[1741036202344,0.231211,86501.0,86486.0,0.0468]
[1741036202972,0.3,86522.0,86494.0,0.231229]
[1741036203145,0.231204,86504.0,86495.0,0.231225]
[1741036203366,0.3,86522.0,86486.0,0.0468]
[1741036203695,0.3,86513.0,86500.0,0.0001587]
[1741036203850,0.231206,86503.0,86500.0,0.0001587]
[1741036204271,0.231211,86501.0,86500.0,0.0001587]
[1741036205054,0.26031244,86501.0,86500.0,0.0001587]
[1741036205933,0.56031244,86501.0,86500.0,0.0001587]
[1741036206656,0.26031244,86501.0,86500.0,0.0001587]
[1741036206857,0.26031244,86501.0,86500.0,0.0021587]
[1741036207059,0.02910144,86501.0,86500.0,0.2333717]
[1741036207276,0.12696,86530.0,86500.0,0.2333717]
[1741036207277,0.462382,86509.0,86501.0,0.231209]
[1741036207564,0.36480621,86536.0,86501.0,0.231209]
[1741036207565,0.1,86551.0,86502.0,0.3215]
[1741036207806,0.0464,86552.0,86503.0,0.3]
[1741036208003,0.11229883,86543.0,86506.0,0.3824]
[1741036208199,0.11229883,86543.0,86507.0,0.00161783]
[1741036208496,0.11229883,86543.0,86526.0,0.231141]
[1741036208497,0.231116,86537.0,86526.0,0.231141]
[1741036208659,0.231123,86534.0,86525.0,0.231147]
[1741036208859,0.231109,86540.0,86529.0,0.231134]
[1741036209064,0.14260451,86543.0,86524.0,0.231149]
[1741036209261,0.14260451,86543.0,86529.0,0.231135]
[1741036209460,0.231115,86537.0,86527.0,0.46228]
[1741036209661,0.231116,86537.0,86528.0,0.231139]
[1741036209885,0.231116,86537.0,86527.0,0.231139]
[1741036210310,0.231121,86535.0,86527.0,0.0001187]
[1741036210509,0.231139,86528.0,86527.0,0.0001187]
[1741036211074,0.3,86532.0,86527.0,0.0021187]
[1741036211280,0.03921931,86543.0,86527.0,0.0021187]
[1741036211478,0.3,86543.0,86527.0,0.0001187]
[1741036211706,0.231132,86531.0,86527.0,0.0001187]
[1741036211906,0.231139,86528.0,86527.0,0.0021187]
[1741036212168,0.531139,86528.0,86527.0,0.0021187]
[1741036212568,0.3,86528.0,86493.0,0.3215]
[1741036212767,0.231211,86501.0,86487.0,0.00499]
[1741036212992,0.23079495,86501.0,86487.0,0.00499]
[1741036213417,0.231196,86507.0,86500.0,0.0002097]
[1741036213621,0.231211,86501.0,86500.0,0.0002097]
[1741036215059,0.2610591,86501.0,86500.0,0.0002097]
[1741036216075,0.0298481,86501.0,86500.0,0.0002097]
[1741036216233,0.231211,86501.0,86500.0,0.0002097]
[1741036216438,0.26033197,86501.0,86500.0,0.0002097]
[1741036216951,0.56033197,86501.0,86500.0,0.0002097]
[1741036218239,0.56889563,86501.0,86500.0,0.0002097]
[1741036219338,0.56889563,86501.0,86500.0,0.2314227]
[1741036219339,0.02912097,86501.0,86500.0,0.2314227]
[1741036219468,0.3234,86527.0,86501.0,0.0801]
[1741036219680,0.231175,86515.0,86508.0,0.231192]
[1741036219888,0.00011883,86515.0,86510.0,0.231184]
[1741036220288,0.231181,86513.0,86501.0,0.0801]
[1741036220525,0.23118,86513.0,86506.0,0.231196]
[1741036220720,0.00011883,86515.0,86504.0,0.231202]
[1741036221061,0.03009964,86515.0,86501.0,0.0801]
[1741036221279,0.231189,86510.0,86503.0,0.231203]
[1741036221511,0.26127464,86515.0,86503.0,0.231205]
[1741036221512,0.231179,86513.0,86503.0,0.231205]
[1741036221712,0.00011883,86515.0,86503.0,0.231205]
[1741036221998,0.231191,86509.0,86501.0,0.311309]
[1741036222206,0.231191,86509.0,86502.0,0.231206]
[1741036222334,0.03050507,86515.0,86503.0,0.231205]
[1741036222540,0.03050507,86515.0,86514.0,0.231176]
[1741036223601,0.03050507,86515.0,86511.0,0.231182]
[1741036223803,0.03050507,86515.0,86511.0,0.231184]
[1741036224003,0.03050507,86515.0,86505.0,0.2312]
[1741036224189,0.23118,86513.0,86505.0,0.231199]
[1741036224388,0.23118,86513.0,86504.0,0.0454]
[1741036224389,0.23118,86513.0,86504.0,0.276601]
[1741036224584,0.03050507,86515.0,86509.0,0.231187]
[1741036224832,0.03050507,86515.0,86511.0,0.231183]
[1741036225186,0.03050507,86515.0,86509.0,0.231187]
[1741036225391,0.03050507,86515.0,86510.0,0.231187]
[1741036225912,0.03050507,86515.0,86512.0,0.231179]
[1741036226730,0.03050507,86515.0,86513.0,0.231178]
[1741036226936,0.03050507,86515.0,86500.0,0.0002097]
[1741036226937,0.231211,86501.0,86500.0,0.0002097]
[1741036228195,0.231211,86501.0,86500.0,0.0032097]
[1741036229069,0.531211,86501.0,86500.0,0.0032097]
[1741036229829,0.53975518,86501.0,86500.0,0.0002097]
[1741036229978,0.231208,86503.0,86500.0,0.0002097]
[1741036230181,0.231211,86501.0,86500.0,0.0002097]
[1741036230977,0.232211,86501.0,86500.0,0.0002097]
[1741036232556,0.231211,86501.0,86500.0,0.0002097]
[1741036232953,0.232211,86501.0,86500.0,0.0002097]
[1741036233578,0.231211,86501.0,86500.0,0.0002097]
[1741036233741,0.231211,86501.0,86500.0,0.0012097]
[1741036234449,0.231211,86501.0,86500.0,0.0002097]
[1741036234651,0.34674,86521.0,86500.0,0.0002097]
[1741036234652,0.231197,86506.0,86500.0,0.0002097]
[1741036234856,0.03964637,86515.0,86500.0,0.0002097]
[1741036235093,0.231181,86513.0,86500.0,0.0002097]
[1741036235307,0.03964637,86515.0,86501.0,0.231208]
[1741036235469,0.231187,86510.0,86503.0,0.231204]
[1741036235672,0.231187,86510.0,86502.0,0.231208]
[1741036235872,0.231187,86510.0,86502.0,0.230208]
[1741036236088,0.2312,86505.0,86500.0,0.0002097]
[1741036236320,0.231211,86501.0,86500.0,0.0002097]
[1741036237391,0.231211,86501.0,86500.0,0.0032097]
[1741036238827,0.231211,86501.0,86500.0,0.0002097]
[1741036240117,0.2315506,86501.0,86500.0,0.0002097]
[1741036240657,0.0003396,86501.0,86500.0,0.0002097]
[1741036241216,0.2315506,86501.0,86500.0,0.0002097]
[1741036241640,0.0003396,86501.0,86500.0,0.0002097]
[1741036242045,0.0003396,86501.0,86500.0,0.2314227]
[1741036242599,0.0003396,86501.0,86500.0,0.3093227]
[1741036242755,0.0003396,86501.0,86500.0,0.3552227]
[1741036242932,0.0003396,86501.0,86500.0,0.3572227]
[1741036243363,0.0003396,86501.0,86500.0,0.3552227]
[1741036243849,0.0003396,86501.0,86500.0,0.3572227]
[1741036245168,0.0003396,86501.0,86500.0,0.3552227]
[1741036246041,0.1033852,86552.0,86514.0,0.614176]
[1741036246191,7.3e-07,86535.0,86534.0,0.754623]
[1741036246394,0.1033852,86552.0,86551.0,0.654377]
[1741036246571,2e-07,86552.0,86551.0,0.654377]
[1741036246777,6e-07,86571.0,86570.0,0.231026]
[1741036247001,1e-08,86571.0,86570.0,0.531026]
[1741036247235,1e-08,86571.0,86570.0,0.659726]
[1741036248300,0.005,86601.0,86588.0,0.3]
[1741036248301,8e-07,86593.0,86588.0,0.3]
[1741036248647,8e-07,86593.0,86587.0,0.3]
[1741036248648,0.046,86665.0,86621.0,0.23089]
[1741036248803,0.146,86665.0,86621.0,0.23089]
[1741036249007,0.00045851,86622.0,86621.0,0.23089]
[1741036249828,0.00045851,86622.0,86621.0,0.21690162]
[1741036250402,0.00045851,86622.0,86603.0,0.346405]
[1741036250403,0.00045851,86622.0,86594.0,0.5403]
[1741036250625,0.00045851,86622.0,86612.0,0.230913]
[1741036250823,0.00045851,86622.0,86620.0,0.230891]
[1741036251375,0.00045851,86622.0,86614.0,0.230908]
[1741036251883,0.00045851,86622.0,86621.0,0.004]
[1741036252261,0.00045851,86622.0,86615.0,0.230905]
[1741036252985,0.00045851,86622.0,86616.0,0.230902]
[1741036253257,0.00045851,86622.0,86606.0,0.230929]
[1741036253258,0.00045851,86622.0,86579.0,0.00885665]
[1741036253551,0.00045851,86622.0,86615.0,0.003]
[1741036253552,0.230904,86616.0,86615.0,0.003]
[1741036253754,0.0093787,86622.0,86615.0,0.003]
[1741036253967,0.00045851,86622.0,86615.0,0.003]
[1741036254136,0.230903,86617.0,86615.0,0.003]
[1741036254301,0.230904,86616.0,86615.0,0.003]
[1741036254498,0.23080628,86616.0,86615.0,0.003]
[1741036254777,0.53080628,86616.0,86615.0,0.003]
[1741036254958,0.3,86616.0,86595.0,0.230959]
[1741036255197,0.230916,86612.0,86596.0,0.230955]
[1741036255477,0.00045851,86622.0,86586.0,0.3]
[1741036255685,0.00045851,86622.0,86599.0,0.230946]
[1741036255967,0.230912,86614.0,86592.0,0.230967]
[1741036256146,0.230912,86614.0,86602.0,0.230938]
[1741036256346,0.230912,86614.0,86596.0,0.230955]
[1741036256347,0.001,86616.0,86577.0,0.3]
[1741036256552,0.23094,86603.0,86591.0,0.23097]
[1741036256754,0.00345851,86622.0,86578.0,0.3215]
[1741036256973,0.3,86611.0,86578.0,0.3215]
[1741036257158,1.364733,86621.0,86578.0,0.3215]
[1741036257159,0.3,86607.0,86578.0,0.3215]
[1741036257363,0.230989,86585.0,86578.0,0.3215]
[1741036257568,0.40776041,86600.0,86576.0,0.0796]
[1741036257767,0.40776041,86600.0,86568.0,0.3215]
[1741036257940,0.346425,86599.0,86568.0,0.3215]